bitfinex/quotes_BTCUSD_20251007
["timestamp","ask_amount","ask_price","bid_price","bid_amount"]
[1759847963502,0.18811351,122750.0,122740.0,0.68061]
[1759847963926,0.18811351,122750.0,122740.0,0.65844]
[1759847964124,0.22417351,122750.0,122740.0,0.65844]
[1759847964345,0.18811351,122750.0,122740.0,0.65844]
[1759847964758,0.22417351,122750.0,122740.0,0.65844]
[1759847964970,0.34824557,122750.0,122740.0,0.65844]
[1759847965175,0.68824557,122750.0,122740.0,0.65844]
[1759847965388,0.67494557,122750.0,122740.0,0.65844]
[1759847965607,0.66413646,122750.0,122740.0,0.65844]
[1759847965816,0.67747646,122750.0,122740.0,0.65844]
[1759847966020,0.67747646,122750.0,122740.0,0.001]
[1759847966217,0.70432646,122750.0,122740.0,0.31952]
[1759847966626,0.69077646,122750.0,122740.0,0.31952]
[1759847966822,0.67747646,122750.0,122740.0,0.31952]
[1759847967069,0.77077326,122750.0,122740.0,0.31952]
[1759847967264,0.69077646,122750.0,122740.0,0.31952]
[1759847967877,0.70432646,122750.0,122740.0,0.31952]
[1759847968078,0.70432646,122750.0,122740.0,0.001]
[1759847968281,0.70432646,122750.0,122740.0,0.23488]
[1759847968508,0.78432326,122750.0,122740.0,0.23488]
[1759847968864,0.78108254,122750.0,122740.0,0.23388]
[1759847969069,0.78408254,122750.0,122740.0,0.23488]
[1759847969543,0.77053254,122750.0,122740.0,0.23488]
[1759847969732,0.78154254,122750.0,122740.0,0.23388]
[1759847969909,0.78854254,122750.0,122740.0,0.23488]
[1759847970587,0.50294606,122740.0,122730.0,0.08468]
[1759847970734,0.1629859,122710.0,122700.0,0.06536749]
[1759847970931,0.1629859,122710.0,122700.0,0.48891783]
[1759847970932,0.2199059,122710.0,122700.0,0.48891783]
[1759847971133,0.2199059,122710.0,122700.0,0.42355034]
[1759847971387,0.2469659,122710.0,122700.0,0.42355034]
[1759847971756,0.2329759,122710.0,122700.0,0.65743034]
[1759847972164,0.2209059,122710.0,122700.0,0.65843034]
[1759847972377,0.1874059,122710.0,122700.0,0.65843034]
[1759847972567,0.2339759,122710.0,122700.0,0.65843034]
[1759847973184,0.2209059,122710.0,122700.0,0.65843034]
[1759847974037,0.1874059,122710.0,122700.0,0.65843034]
[1759847974244,0.2209059,122710.0,122700.0,0.65843034]
[1759847974601,0.2209059,122710.0,122700.0,0.00115034]
[1759847974768,0.64402796,122710.0,122700.0,0.00115034]
[1759847974952,0.64402796,122710.0,122700.0,0.11279034]
[1759847976191,0.64302796,122710.0,122700.0,0.11179034]
[1759847976598,0.6465343,122710.0,122700.0,0.11279034]
[1759847976821,0.6465343,122710.0,122700.0,0.12415424]
[1759847977021,0.6465343,122710.0,122700.0,0.11279034]
[1759847977639,0.6485343,122710.0,122700.0,0.11279034]
[1759847977850,0.6985343,122710.0,122700.0,0.11279034]
[1759847978263,0.61541224,122710.0,122700.0,0.11279034]
[1759847978443,0.58191224,122710.0,122700.0,0.13573034]
[1759847978847,0.61579224,122710.0,122700.0,0.11279034]
[1759847979714,0.6989143,122710.0,122700.0,0.00115034]
[1759847979914,0.6989143,122710.0,122700.0,0.31975034]
[1759847980496,0.7789111,122710.0,122700.0,0.31975034]
[1759847982368,0.6989143,122710.0,122700.0,0.31975034]
[1759847985666,0.6989143,122710.0,122700.0,0.31970834]
[1759847988082,0.6959143,122710.0,122700.0,0.23402834]
[1759847988288,0.6939143,122710.0,122700.0,0.23402834]
[1759847988545,0.6999143,122710.0,122700.0,0.23502834]
[1759847988755,0.6740343,122710.0,122700.0,0.23502834]
[1759847988920,0.3679143,122710.0,122700.0,0.23502834]
[1759847989150,0.25091224,122710.0,122700.0,0.25796834]
[1759847989499,0.22749224,122710.0,122700.0,0.25796834]
[1759847989684,0.06450634,122710.0,122700.0,0.45474752]
[1759847989860,0.22749224,122710.0,122700.0,0.29174834]
[1759847990047,0.22749224,122710.0,122700.0,0.25796834]
[1759847990250,0.06450634,122710.0,122700.0,0.45474752]
[1759847990449,0.05650634,122710.0,122700.0,0.53786958]
[1759847990656,0.05050634,122710.0,122700.0,0.53686958]
[1759847990877,0.05150634,122710.0,122700.0,0.53686958]
[1759847991049,0.05450634,122710.0,122700.0,1.56852158]
[1759847991453,0.05450634,122710.0,122700.0,1.48543758]
[1759847991649,0.05050634,122710.0,122700.0,1.42047758]
[1759847991846,0.05050634,122710.0,122700.0,1.04576258]
[1759847992141,0.05150634,122710.0,122700.0,0.86252858]
[1759847992394,0.05150634,122710.0,122700.0,0.64250958]
[1759847992597,0.21349224,122710.0,122700.0,0.7973504]
[1759847992813,0.21349224,122710.0,122700.0,0.23402834]
[1759847992814,0.26895224,122710.0,122700.0,0.23402834]
[1759847993019,0.26895224,122710.0,122700.0,0.31870834]
[1759847993830,0.27095224,122710.0,122700.0,0.32070834]
[1759847994031,0.27095224,122710.0,122700.0,0.08568]
[1759847994494,0.05150634,122710.0,122700.0,0.60762]
[1759847994710,0.21749224,122710.0,122700.0,0.10862]
[1759847994928,0.05425634,122710.0,122700.0,0.30539918]
[1759847995130,0.05425634,122710.0,122700.0,0.53979918]
[1759847995576,0.21724224,122710.0,122700.0,0.3768]
[1759847995810,0.21724224,122710.0,122700.0,0.35129201]
[1759847996039,0.05425634,122710.0,122700.0,0.54807119]
[1759847996480,0.21724224,122710.0,122700.0,0.54807119]
[1759847996700,0.05425634,122710.0,122700.0,0.54807119]
[1759847997415,0.23882224,122710.0,122700.0,0.35129201]
[1759847997632,0.21724224,122710.0,122700.0,0.35129201]
[1759847997867,0.05425634,122710.0,122700.0,0.54807119]
[1759847998092,0.21724224,122710.0,122700.0,0.06599201]
[1759847998440,0.21724224,122710.0,122700.0,0.72371201]
[1759847998607,0.21724224,122710.0,122700.0,0.68993201]
[1759847998811,0.05425634,122710.0,122700.0,0.19521119]
[1759847999043,0.05425634,122710.0,122700.0,0.68989201]
[1759847999253,0.21724224,122710.0,122700.0,0.03221201]
[1759847999456,0.23882224,122710.0,122700.0,0.001]
[1759847999639,0.27312224,122710.0,122700.0,0.65864]
[1759847999857,0.23882224,122710.0,122700.0,0.65864]
[1759848000068,0.23882224,122710.0,122700.0,0.68021]
[1759848000205,0.23882224,122710.0,122700.0,0.57396]
[1759848000422,0.23882224,122710.0,122700.0,0.31988]
[1759848000423,0.27312224,122710.0,122700.0,0.31988]
[1759848001062,0.23882224,122710.0,122700.0,0.34145]
[1759848001608,0.23882224,122710.0,122700.0,0.31988]
[1759848001726,0.22312224,122710.0,122700.0,0.31988]
[1759848002975,0.18882224,122710.0,122700.0,0.34145]
[1759848003178,0.18882224,122710.0,122700.0,0.31988]
[1759848003389,0.22312224,122710.0,122700.0,0.31988]
[1759848004006,0.22312224,122710.0,122700.0,0.3198]
[1759848004214,0.26151224,122710.0,122700.0,0.3198]
[1759848004441,0.3574843,122710.0,122700.0,0.31976]
[1759848004850,0.70561036,122710.0,122700.0,0.001]
[1759848005064,0.70561036,122710.0,122700.0,0.10256]
[1759848005678,0.70561036,122710.0,122700.0,0.001]
[1759848005881,0.70561036,122710.0,122700.0,0.08568]
[1759848006081,0.70561036,122710.0,122700.0,0.1808]
[1759848006380,1.71072193,122710.0,122700.0,0.001]
[1759848006587,1.71072193,122710.0,122700.0,0.17572]
[1759848006763,0.78560716,122710.0,122700.0,0.17572]
[1759848006965,0.78160716,122710.0,122700.0,0.17472]
[1759848007175,0.81175906,122710.0,122700.0,0.17472]
[1759848007396,1.49240865,122710.0,122700.0,0.17472]
[1759848007731,1.49440865,122710.0,122700.0,0.17572]
[1759848008139,1.51887213,122710.0,122700.0,1e-08]
[1759848008346,1.51887213,122710.0,122690.0,0.00084869]
[1759848008347,0.53315108,122700.0,122690.0,0.00084869]
[1759848008705,0.53315108,122700.0,122640.0,0.40416749]
[1759848008706,0.16306563,122650.0,122640.0,0.40416749]
[1759848008909,0.23108563,122650.0,122640.0,0.48884749]
[1759848009088,0.23108563,122650.0,122640.0,0.42348]
[1759848009726,0.24410563,122650.0,122640.0,0.65768]
[1759848009935,0.2442563,122650.0,122640.0,0.65768]
[1759848011402,0.2462563,122650.0,122640.0,0.65868]
[1759848011829,0.2462563,122650.0,122640.0,0.001]
[1759848012031,0.2589863,122650.0,122640.0,0.08568]
[1759848012241,0.2589863,122650.0,122640.0,0.17372]
[1759848012468,1.41761097,122650.0,122640.0,1e-08]
[1759848012686,1.41761097,122650.0,122640.0,0.23412001]
[1759848012898,0.73796138,122650.0,122640.0,0.23412001]
[1759848013108,0.69495836,122650.0,122640.0,0.23412001]
[1759848013324,0.69295836,122650.0,122640.0,0.23412]
[1759848013787,0.70495836,122650.0,122640.0,0.23512]
[1759848014004,0.69895836,122650.0,122640.0,0.23512]
[1759848014206,0.69295836,122650.0,122640.0,0.23412]
[1759848014388,0.76010905,122650.0,122640.0,0.2369034]
[1759848014618,0.70195836,122650.0,122640.0,0.2379034]
[1759848014835,0.67237836,122650.0,122640.0,0.2379034]
[1759848015086,0.1892963,122650.0,122640.0,0.2594734]
[1759848015307,0.1932963,122650.0,122640.0,0.2594734]
[1759848015534,0.34910836,122650.0,122640.0,0.0037834]
[1759848015707,0.70195836,122650.0,122640.0,0.3226234]
[1759848016347,0.66335836,122650.0,122640.0,0.3226234]
[1759848016554,0.67637836,122650.0,122640.0,0.3226234]
[1759848016771,0.5459363,122650.0,122640.0,0.3441934]
[1759848016973,0.5332963,122650.0,122640.0,0.3441934]
[1759848017180,0.5932563,122650.0,122640.0,0.2378634]
[1759848017403,0.6059863,122650.0,122640.0,0.0037834]
[1759848017652,0.68910836,122650.0,122640.0,0.3225834]
[1759848018077,0.76910516,122650.0,122640.0,0.3225834]
[1759848018281,0.70195836,122650.0,122640.0,0.3226634]
[1759848018489,0.70195836,122650.0,122640.0,0.0037834]
[1759848018710,0.70195836,122650.0,122640.0,0.3226634]
[1759848018938,1.38160795,122650.0,122640.0,0.1215434]
[1759848019153,0.70195836,122650.0,122640.0,0.1215434]
[1759848019376,1.38160795,122650.0,122640.0,0.1215434]
[1759848019586,0.70195836,122650.0,122640.0,0.1215434]
[1759848020868,1.38160795,122650.0,122640.0,0.0037834]
[1759848021082,1.51045475,122650.0,122640.0,0.0037834]
[1759848021301,0.16309222,122630.0,122620.0,0.09671272]
[1759848021521,1.37248387,122630.0,122620.0,0.01199272]
[1759848021942,0.69283428,122630.0,122620.0,0.01142704]
[1759848022150,0.74596375,122630.0,122620.0,0.01142704]
[1759848022365,0.69283428,122630.0,122620.0,0.01142704]
[1759848022574,1.37248387,122630.0,122620.0,0.24562704]
[1759848022835,1.40263577,122630.0,122620.0,0.24562704]
[1759848023040,1.45348577,122630.0,122620.0,0.24562704]
[1759848023279,0.77483618,122630.0,122620.0,0.24562704]
[1759848023480,1.45448577,122630.0,122620.0,0.24562704]
[1759848023692,0.77283618,122630.0,122620.0,0.24562704]
[1759848023912,1.42233387,122630.0,122620.0,0.24562704]
[1759848024143,0.74668428,122630.0,122620.0,0.24562704]
[1759848024362,0.83168108,122630.0,122620.0,0.24562704]
[1759848024577,0.75168428,122630.0,122620.0,0.24562704]
[1759848024991,1.43133387,122630.0,122620.0,0.24562704]
[1759848025210,1.38248387,122630.0,122620.0,0.24562704]
[1759848025834,1.41263577,122630.0,122620.0,0.24562704]
[1759848026053,1.49263257,122630.0,122620.0,0.01142704]
[1759848026261,0.53325742,122620.0,122610.0,0.17192001]
[1759848026459,0.70191948,122620.0,122610.0,0.17192001]
[1759848026675,1.40264907,122620.0,122610.0,0.17192001]
[1759848026876,1.45577854,122620.0,122610.0,0.17192001]
[1759848027279,1.47067238,122620.0,122610.0,0.17192001]
[1759848027484,1.47567238,122620.0,122610.0,0.17192001]
[1759848027702,1.46077854,122620.0,122610.0,0.17192001]
[1759848027906,1.40764907,122620.0,122610.0,0.17192001]
[1759848028325,1.42254292,122620.0,122610.0,0.17192001]
[1759848028526,1.42254292,122620.0,122610.0,0.23432001]
[1759848028860,1.49639292,122620.0,122610.0,1e-08]
[1759848029076,0.16315875,122580.0,122570.0,0.0002]
[1759848029283,0.16314591,122590.0,122570.0,0.04708]
[1759848029492,0.16315875,122580.0,122570.0,0.71321]
[1759848029697,0.17630591,122590.0,122570.0,0.71321]
[1759848029889,0.17131153,122600.0,122570.0,0.88997196]
[1759848030097,0.01316,122600.0,122570.0,0.84302196]
[1759848030224,0.01316,122600.0,122580.0,0.20992698]
[1759848030225,0.1632895,122600.0,122580.0,0.20992698]
[1759848030473,0.16328319,122600.0,122590.0,0.25631]
[1759848030627,0.00015059,122600.0,122590.0,0.46723952]
[1759848030826,0.16328272,122600.0,122590.0,0.30409408]
[1759848031092,0.32696478,122600.0,122590.0,0.00101408]
[1759848031292,0.33952478,122600.0,122590.0,0.32013408]
[1759848031495,0.33952478,122600.0,122590.0,0.00101408]
[1759848031699,0.35272478,122600.0,122590.0,0.03969408]
[1759848031905,0.69272478,122600.0,122590.0,0.00101408]
[1759848032064,0.77272158,122600.0,122590.0,0.32021408]
[1759848032268,0.16328272,122600.0,122590.0,0.02296408]
[1759848032472,0.19900272,122600.0,122590.0,0.16105408]
[1759848032675,0.25640272,122600.0,122590.0,0.32037408]
[1759848032873,0.29917363,122600.0,122590.0,0.32037408]
[1759848033097,0.25840272,122600.0,122590.0,0.32437408]
[1759848033343,0.25840272,122600.0,122590.0,0.00101408]
[1759848033545,0.34152478,122600.0,122590.0,0.32037408]
[1759848033688,0.35272478,122600.0,122590.0,0.32237408]
[1759848034234,0.17944272,122600.0,122590.0,0.34432408]
[1759848034393,0.00315059,122600.0,122590.0,0.55423952]
[1759848035543,0.16628272,122600.0,122590.0,0.55423952]
[1759848035706,0.00315059,122600.0,122590.0,0.55423952]
[1759848036824,0.16628272,122600.0,122590.0,0.55423952]
[1759848037037,0.16628272,122600.0,122590.0,0.39109408]
[1759848037657,0.00315059,122600.0,122590.0,0.55423952]
[1759848037864,0.16628272,122600.0,122590.0,0.55423952]
[1759848038171,0.00315059,122600.0,122590.0,0.55423952]
[1759848038600,0.00315059,122600.0,122590.0,0.56742952]
[1759848039007,0.00315059,122600.0,122590.0,0.65055158]
[1759848039160,0.00315059,122600.0,122590.0,0.65946158]
[1759848039342,0.00315059,122600.0,122590.0,0.65055158]
[1759848039545,0.00315059,122600.0,122590.0,0.56571158]
[1759848039770,0.00015059,122600.0,122590.0,0.98951158]
[1759848039982,0.00015059,122600.0,122590.0,0.99051158]
[1759848040208,0.00115059,122600.0,122590.0,0.16904614]
[1759848040568,0.00015059,122600.0,122590.0,1.04866334]
[1759848040738,0.00015059,122600.0,122590.0,1.05466334]
[1759848041001,0.00015059,122600.0,122590.0,4.25606134]
[1759848041196,0.00015059,122600.0,122590.0,4.31121324]
[1759848041412,0.00015059,122600.0,122590.0,4.33567889]
[1759848041617,0.00015059,122600.0,122590.0,3.67739889]
[1759848041828,0.00015059,122600.0,122590.0,4.67519889]
[1759848042053,0.00115059,122600.0,122590.0,3.67839889]
[1759848042281,0.00115059,122600.0,122590.0,4.67619889]
[1759848042487,0.00015059,122600.0,122590.0,3.64639889]
[1759848042635,0.00015059,122600.0,122590.0,3.62224699]
[1759848042843,0.00115059,122600.0,122590.0,4.62208699]
[1759848043047,0.00115059,122600.0,122590.0,3.62393324]
[1759848043255,0.00115059,122600.0,122590.0,4.62037324]
[1759848043453,0.00115059,122600.0,122590.0,4.62837324]
[1759848044282,0.00115059,122600.0,122590.0,4.65337324]
[1759848045224,0.00115059,122600.0,122590.0,4.22949324]
[1759848045426,0.00115059,122600.0,122590.0,4.65329324]
[1759848046189,0.00115059,122600.0,122590.0,4.62294134]
[1759848046533,0.00115059,122600.0,122590.0,4.65309324]
[1759848047145,0.00115059,122600.0,122590.0,3.65553324]
[1759848047357,0.00115059,122600.0,122590.0,4.65309324]
[1759848047554,0.00115059,122600.0,122590.0,4.54333324]
[1759848047795,0.00115059,122600.0,122590.0,4.62805324]
[1759848048179,0.00115059,122600.0,122590.0,3.63053324]
[1759848048652,0.00115059,122600.0,122590.0,4.62801324]
[1759848048859,0.00115059,122600.0,122590.0,4.65301324]
[1759848050011,0.00115059,122600.0,122590.0,4.62286134]
[1759848050238,0.00115059,122600.0,122590.0,3.63053324]
[1759848050462,0.00115059,122600.0,122590.0,3.66724934]
[1759848050735,0.00115059,122600.0,122590.0,1.69148734]
[1759848051009,0.00115059,122600.0,122590.0,2.11420734]
[1759848051265,0.00115059,122600.0,122590.0,2.34908734]
[1759848051504,0.00115059,122600.0,122590.0,2.35760734]
[1759848051720,0.00115059,122600.0,122590.0,2.72775924]
[1759848051941,0.00115059,122600.0,122590.0,1.73015924]
[1759848052172,0.00115059,122600.0,122590.0,2.71919924]
[1759848052389,0.00115059,122600.0,122590.0,2.72771924]
[1759848053296,0.00115059,122600.0,122590.0,2.75218755]
[1759848053966,0.00115059,122600.0,122590.0,1.75462755]
[1759848054154,0.00115059,122600.0,122590.0,2.75218755]
[1759848055722,0.00115059,122600.0,122590.0,1.75462755]
[1759848055931,0.00115059,122600.0,122590.0,2.75214755]
[1759848056806,0.00115059,122600.0,122590.0,1.75462755]
[1759848057234,0.00115059,122600.0,122590.0,2.49287924]
[1759848057439,0.00115059,122600.0,122590.0,2.72767924]
[1759848058534,0.00115059,122600.0,122590.0,1.73015924]
[1759848058735,0.00115059,122600.0,122590.0,2.72771924]
[1759848059153,0.00115059,122600.0,122590.0,1.73015924]
[1759848059365,0.00115059,122600.0,122590.0,2.72771924]
[1759848060005,0.00115059,122600.0,122590.0,1.73015924]
[1759848060670,0.00115059,122600.0,122590.0,2.30387924]
[1759848060905,0.00115059,122600.0,122590.0,2.72755924]
[1759848061105,0.00115059,122600.0,122590.0,1.70000734]
[1759848061309,0.00115059,122600.0,122590.0,2.68896734]
[1759848062392,0.00115059,122600.0,122590.0,2.69831734]
[1759848062735,0.00115059,122600.0,122590.0,1.70083734]
[1759848062930,0.00115059,122600.0,122590.0,2.69827734]
[1759848063328,0.00115059,122600.0,122590.0,1.69148734]
[1759848063507,0.00115059,122600.0,122590.0,2.68888734]
[1759848064145,0.00115059,122600.0,122590.0,0.9995579]
[1759848064354,0.00115059,122600.0,122590.0,1.04411334]
[1759848064782,0.00115059,122600.0,122590.0,1.24541234]
[1759848065159,0.00115059,122600.0,122590.0,1.24549234]
[1759848065769,0.00115059,122600.0,122590.0,1.25810234]
[1759848066939,0.00115059,122600.0,122590.0,1.24549234]
[1759848067176,0.00115059,122600.0,122590.0,1.25810234]
[1759848067377,0.00115059,122600.0,122590.0,1.26745234]
[1759848067578,0.00115059,122600.0,122590.0,1.29760424]
[1759848067782,0.00026151,122600.0,122590.0,1.29760424]
[1759848069410,0.05567141,122640.0,122620.0,0.16310524]
[1759848069649,0.05582231,122640.0,122630.0,0.50491222]
[1759848069848,0.05582231,122640.0,122630.0,0.53845222]
[1759848070000,0.0001509,122640.0,122630.0,0.53845222]
[1759848070233,0.00217837,122640.0,122630.0,0.53845222]
[1759848070383,0.00217837,122640.0,122630.0,0.73739428]
[1759848070586,0.00817837,122640.0,122630.0,0.75821212]
[1759848070987,0.00917837,122640.0,122630.0,0.75821212]
[1759848071389,0.00917837,122640.0,122630.0,0.74561212]
[1759848071618,0.00817837,122640.0,122630.0,0.74561212]
[1759848071794,0.00817837,122640.0,122630.0,0.74661212]
[1759848071795,0.00217837,122640.0,122630.0,0.74661212]
[1759848072025,0.00417837,122640.0,122630.0,0.74661212]
[1759848072244,0.01117837,122640.0,122630.0,0.74661212]
[1759848072839,0.01117837,122640.0,122630.0,0.96971212]
[1759848073188,0.01117837,122640.0,122630.0,1.13817212]
[1759848073619,0.01117837,122640.0,122630.0,1.10031112]
[1759848073821,0.01117837,122640.0,122630.0,0.44211112]
[1759848074019,0.1970873,122640.0,122630.0,0.03175784]
[1759848074237,0.01117837,122640.0,122630.0,0.68987784]
[1759848074458,0.01117837,122640.0,122630.0,0.22839006]
[1759848074675,0.1742573,122640.0,122630.0,0.68987784]
[1759848074915,0.1970873,122640.0,122630.0,0.44722]
[1759848075121,0.1970873,122640.0,122630.0,0.59694]
[1759848075325,0.1970873,122640.0,122630.0,0.001]
[1759848075535,0.33762936,122640.0,122630.0,0.08572]
[1759848075732,0.70428936,122640.0,122630.0,0.08572]
[1759848075943,0.70428936,122640.0,122630.0,0.001]
[1759848076382,1.63071142,122640.0,122630.0,0.08572]
[1759848076578,1.66086332,122640.0,122630.0,0.105652]
[1759848077014,0.73444126,122640.0,122630.0,0.09708]
[1759848077243,1.66086332,122640.0,122630.0,0.09708]
[1759848077468,0.16311883,122610.0,122600.0,0.3393024]
[1759848077699,0.16211883,122610.0,122600.0,0.6584624]
[1759848077911,0.21625883,122610.0,122600.0,0.6584624]
[1759848078114,0.22873883,122610.0,122600.0,0.6584624]
[1759848078775,0.22973883,122610.0,122600.0,0.6594624]
[1759848079001,0.23173883,122610.0,122600.0,0.6594624]
[1759848080411,0.16511883,122610.0,122600.0,0.6820024]
[1759848080563,0.18794883,122610.0,122600.0,0.6820024]
[1759848081110,0.18794883,122610.0,122600.0,0.0238824]
[1759848081315,0.18794883,122610.0,122600.0,0.3429624]
[1759848082832,0.18845591,122610.0,122600.0,0.3429624]
[1759848083037,0.16662591,122610.0,122600.0,0.3429624]
[1759848083210,0.18945591,122610.0,122600.0,0.3429624]
[1759848083635,0.18945591,122610.0,122600.0,0.3204224]
[1759848084241,0.18945591,122610.0,122600.0,0.3429624]
[1759848084470,0.18945591,122610.0,122600.0,0.0238824]
[1759848084824,0.18945591,122610.0,122600.0,0.6820824]
[1759848085389,0.18945591,122610.0,122600.0,0.6595424]
[1759848085785,0.22076591,122610.0,122600.0,0.6595424]
[1759848085987,0.18945591,122610.0,122600.0,0.6595424]
[1759848086199,0.27353591,122610.0,122600.0,0.0013424]
[1759848086426,0.35665797,122610.0,122600.0,0.3203024]
[1759848086725,0.35665797,122610.0,122600.0,0.0013424]
[1759848086888,0.80680667,122610.0,122600.0,0.0013424]
[1759848087092,0.80680667,122610.0,122600.0,0.3203024]
[1759848087093,1.73322873,122610.0,122600.0,0.3203024]
[1759848087303,1.73322873,122610.0,122600.0,0.0013424]
[1759848087530,0.80680667,122610.0,122600.0,0.3203024]
[1759848087962,0.80580667,122610.0,122600.0,0.3193024]
[1759848088182,0.80380667,122610.0,122600.0,0.3193024]
[1759848088409,1.73122873,122610.0,122600.0,0.3193024]
[1759848088635,0.80480667,122610.0,122600.0,0.0003424]
[1759848088836,1.73122873,122610.0,122600.0,0.3193024]
[1759848089267,1.73022873,122610.0,122600.0,0.3193024]
[1759848089465,1.73222873,122610.0,122600.0,0.3193024]
[1759848089665,1.73922873,122610.0,122600.0,0.3193024]
[1759848089849,0.57700591,122610.0,122600.0,0.3193024]
[1759848090093,0.58924591,122610.0,122600.0,0.3193024]
[1759848090272,0.59324591,122610.0,122600.0,0.3193024]
[1759848090868,0.58100591,122610.0,122600.0,0.3193024]
[1759848091074,0.57400591,122610.0,122600.0,0.3193024]
[1759848091293,0.57400591,122610.0,122600.0,0.3404024]
[1759848091294,0.53445591,122610.0,122600.0,0.3404024]
[1759848091744,0.53445591,122610.0,122600.0,0.3193024]
[1759848091970,0.57849591,122610.0,122600.0,0.3193024]
[1759848092167,0.53445591,122610.0,122600.0,0.3193024]
[1759848092322,0.56625591,122610.0,122600.0,0.3193024]
[1759848092527,0.53445591,122610.0,122600.0,0.3404024]
[1759848093234,0.53445591,122610.0,122600.0,0.3193024]
[1759848094705,0.53445591,122610.0,122600.0,0.3404024]
[1759848094957,0.19445591,122610.0,122600.0,0.3404024]
[1759848095307,0.23849591,122610.0,122600.0,0.3193024]
[1759848096035,0.25073591,122610.0,122600.0,0.0003424]
[1759848096252,0.34612797,122610.0,122600.0,0.1814224]
[1759848096464,1.27255003,122610.0,122600.0,0.2661824]
[1759848096673,0.34612797,122610.0,122600.0,0.2661824]
[1759848096873,1.27255003,122610.0,122600.0,0.2661824]
[1759848097398,1.27255003,122610.0,122600.0,0.2345824]
[1759848097588,1.27255003,122610.0,122600.0,0.3193424]
[1759848097793,1.27255003,122610.0,122600.0,0.0003424]
[1759848098004,0.72970987,122610.0,122600.0,0.0003424]
[1759848098218,1.65613193,122610.0,122600.0,0.1031424]
[1759848098428,0.72970987,122610.0,122600.0,0.1031424]
[1759848098644,1.65613193,122610.0,122600.0,0.1031424]
[1759848099461,1.65613193,122610.0,122600.0,0.0003424]
[1759848099666,1.73612873,122610.0,122600.0,0.3193424]
[1759848099888,0.80970667,122610.0,122600.0,0.3193424]
[1759848100048,1.78497873,122610.0,122600.0,0.3193424]
[1759848100258,1.65613193,122610.0,122600.0,0.3193424]
[1759848100460,0.72970987,122610.0,122600.0,0.3193424]
[1759848101261,1.65613193,122610.0,122600.0,0.3193424]
[1759848101924,0.72970987,122610.0,122600.0,0.3193424]
[1759848102080,1.73612873,122610.0,122600.0,0.3193424]
[1759848102585,0.80970667,122610.0,122600.0,0.3193424]
[1759848102996,1.73612873,122610.0,122600.0,0.3193424]
[1759848104170,1.65613193,122610.0,122600.0,0.3193424]
[1759848104692,0.72970987,122610.0,122600.0,0.3193424]
[1759848104893,1.65613193,122610.0,122600.0,0.3193424]
[1759848105130,0.72970987,122610.0,122600.0,0.3193424]
[1759848105328,1.65613193,122610.0,122600.0,0.3193424]
[1759848105539,1.65613193,122610.0,122600.0,1.2310424]
[1759848105902,0.72970987,122610.0,122600.0,1.2310424]
[1759848106101,1.65613193,122610.0,122600.0,1.2310424]
[1759848106373,0.68612797,122610.0,122600.0,1.2310424]
[1759848108184,1.61255003,122610.0,122600.0,1.2310424]
[1759848108654,1.62531003,122610.0,122600.0,0.9120424]
[1759848108847,1.62531003,122610.0,122600.0,1.2310424]
[1759848109466,1.62531003,122610.0,122600.0,0.9968024]
[1759848109672,1.62531003,122610.0,122600.0,1.2310424]
[1759848110707,1.62531003,122610.0,122600.0,0.9120424]
[1759848110898,1.62531003,122610.0,122600.0,1.2310424]
[1759848111102,2.00716989,122610.0,122600.0,1.2310424]
[1759848111385,2.00716989,122610.0,122600.0,1.22941136]
[1759848111594,2.00716989,122610.0,122600.0,1.14465136]
[1759848111798,0.80903667,122610.0,122600.0,1.22941136]
[1759848112019,2.00716989,122610.0,122600.0,1.22941136]
[1759848112227,1.32810648,122610.0,122600.0,1.22941136]
[1759848112432,0.72903987,122610.0,122600.0,1.22941136]
[1759848112662,1.92717309,122610.0,122600.0,1.14465136]
[1759848112864,0.72903987,122610.0,122600.0,1.22941136]
[1759848113475,1.92717309,122610.0,122600.0,1.22941136]
[1759848114109,0.72903987,122610.0,122600.0,1.22941136]
[1759848114411,1.92717309,122610.0,122600.0,1.22941136]
[1759848114622,0.80903667,122610.0,122600.0,1.22941136]
[1759848114838,0.72903987,122610.0,122600.0,1.22941136]
[1759848114978,0.59073591,122610.0,122600.0,1.22941136]
[1759848115180,0.57849591,122610.0,122600.0,1.22941136]
[1759848115382,1.17756252,122610.0,122600.0,1.22941136]
[1759848115585,1.14576252,122610.0,122600.0,1.25103136]
[1759848115825,0.53445591,122610.0,122600.0,1.25103136]
[1759848116023,0.17162591,122610.0,122600.0,1.25103136]
[1759848116174,0.17162591,122610.0,122600.0,1.28317136]
[1759848116175,0.00850708,122610.0,122600.0,1.28317136]
[1759848116376,0.00850708,122610.0,122600.0,1.29638136]
[1759848116605,0.00850708,122610.0,122600.0,1.47229349]
[1759848117001,0.00850708,122610.0,122600.0,1.30916136]
[1759848117207,0.18984591,122610.0,122600.0,0.93203136]
[1759848117404,0.00450708,122610.0,122600.0,1.59015136]
[1759848117663,0.00450708,122610.0,122600.0,1.62229136]
[1759848117862,0.00450708,122610.0,122600.0,1.63550136]
[1759848118424,0.00050708,122610.0,122600.0,1.63550136]
[1759848118631,0.00250708,122610.0,122600.0,1.63159556]
[1759848118836,0.00250708,122610.0,122600.0,1.64480556]
[1759848119056,0.00050708,122610.0,122600.0,1.64380556]
[1759848119265,0.00050708,122610.0,122600.0,1.81971769]
[1759848119486,0.00250708,122610.0,122600.0,1.82071769]
[1759848120108,0.00250708,122610.0,122600.0,2.46049175]
[1759848120289,0.00250708,122610.0,122600.0,2.32844075]
[1759848120512,0.00250708,122610.0,122600.0,2.35721375]
[1759848120855,0.00250708,122610.0,122600.0,1.69909375]
[1759848121051,0.00250708,122610.0,122600.0,1.53951475]
[1759848121252,0.00250708,122610.0,122600.0,1.69604475]
[1759848121491,0.00050708,122610.0,122600.0,1.69504475]
[1759848121701,0.00050708,122610.0,122600.0,2.11639475]
[1759848121904,0.00150708,122610.0,122600.0,2.33981475]
[1759848122128,0.00150708,122610.0,122600.0,1.23793975]
[1759848122345,0.00150708,122610.0,122600.0,1.89597975]
[1759848122545,0.02182708,122610.0,122600.0,1.59607136]
[1759848122890,0.19780591,122610.0,122600.0,1.57445136]
[1759848123094,0.19780591,122610.0,122600.0,1.59530136]
[1759848123535,0.03468708,122610.0,122600.0,1.59530136]
[1759848123745,0.02182708,122610.0,122600.0,1.59530136]
[1759848123988,0.18494591,122610.0,122600.0,1.59530136]
[1759848124358,0.18494591,122610.0,122600.0,1.51054136]
[1759848124587,0.19780591,122610.0,122600.0,1.59530136]
[1759848124769,0.18494591,122610.0,122600.0,1.59530136]
[1759848124970,0.00150708,122610.0,122600.0,1.59530136]
[1759848125104,0.00150708,122610.0,122600.0,1.62745136]
[1759848125313,0.16462591,122610.0,122600.0,1.62745136]
[1759848126355,0.16462591,122610.0,122600.0,1.59530136]
[1759848127199,0.00150708,122610.0,122600.0,1.64074136]
[1759848127398,0.00150708,122610.0,122600.0,1.80387349]
[1759848127607,0.00150708,122610.0,122600.0,1.89958555]
[1759848127992,0.00150708,122610.0,122600.0,3.35643455]